fUST/lending_fUST_20250106
["ID","MTS","AMOUNT","RATE_DAILY","PERIOD"]
[347826451,1736136664323,-500.0,0.00021969,3]
[347826452,1736136664334,-1108.603514,0.00021969,7]
[347826453,1736136664344,-500.0,0.00021969,3]
[347826454,1736136664353,-500.0,0.00021969,3]
[347826455,1736136664363,-500.0,0.00021969,3]
[347826456,1736136664373,-1108.603514,0.00021969,7]
[347826457,1736136664383,-252.1362103,0.00021969,3]
[347826458,1736136664393,-500.0,0.00021969,3]
[347826459,1736136664402,-500.0,0.00021969,3]
[347826460,1736136664412,-500.0,0.00021969,3]
[347826461,1736136664421,-500.0,0.00021969,3]
[347826462,1736136664432,-500.0,0.00021969,3]
[347826463,1736136664442,-500.0,0.00021969,3]
[347826464,1736136664451,-500.0,0.00021969,3]
[347826465,1736136664460,-500.0,0.00021969,3]
[347826466,1736136664474,-503.55891128,0.00021969,3]
[347826467,1736136664484,-500.0,0.00021969,3]
[347826468,1736136664493,-513.09677252,0.00021969,3]
[347826469,1736136664502,-500.0,0.00021969,3]
[347826470,1736136664511,-500.0,0.00021969,3]
[347826471,1736136664520,-559.88638412,0.00021969,3]
[347826472,1736136664529,-500.0,0.00021969,3]
[347826473,1736136664538,-500.0,0.00021969,3]
[347826474,1736136664547,-500.0,0.00021969,3]
[347826475,1736136664557,-500.0,0.00021969,3]
[347826476,1736136664566,-500.0,0.00021969,3]
[347826477,1736136664575,-14857.64,0.00021969,3]
[347826478,1736136664584,-1710.127845,0.00021969,7]
[347826479,1736136664594,-519.74511121,0.00021969,3]
[347826480,1736136664603,-1710.127845,0.00021969,7]
[347826481,1736136664612,-500.0,0.00021969,3]
[347826482,1736136664625,-500.0,0.00021969,3]
[347826483,1736136664634,-500.0,0.00021969,3]
[347826484,1736136664643,-500.0,0.00021969,3]
[347826485,1736136664652,-584.00720817,0.00021969,3]
[347826486,1736136664663,-151.0,0.00021969,7]
[347826487,1736136664673,-151.0,0.00021969,7]
[347826488,1736136664683,-500.0,0.00021969,3]
[347826489,1736136664692,-500.0,0.00021969,3]
[347826490,1736136664703,-500.0,0.00021969,3]
[347826491,1736136664712,-500.0,0.00021969,3]
[347826492,1736136664723,-151.0,0.0002197,7]
[347826493,1736136664732,-151.0,0.0002197,7]
[347826494,1736136664741,-979.654099,0.0002197,7]
[347826495,1736136664750,-979.654099,0.0002197,7]
[347826496,1736136664760,-500.0,0.0002197,3]
[347826497,1736136664769,-151.0,0.00021971,7]
[347826498,1736136664778,-506.64461806,0.00021971,3]
[347826499,1736136664787,-500.0,0.00021971,3]
[347826500,1736136664797,-500.0,0.00021971,3]
[347826501,1736136664806,-500.0,0.00021971,3]
[347826502,1736136664815,-500.0,0.00021971,3]
[347826503,1736136664824,-506.00996704,0.00021971,3]
[347826504,1736136664833,-500.0,0.00021971,3]
[347826505,1736136664843,-151.0,0.00021972,7]
[347826506,1736136664851,-272.556983,0.00021972,7]
[347826507,1736136664861,-272.556983,0.00021972,7]
[347826508,1736136664870,-150.0,0.00021973,2]
[347826509,1736136664879,-500.0,0.00021973,3]
[347826510,1736136664888,-500.0,0.00021973,3]
[347826511,1736136664897,-505.49408059,0.00021973,3]
[347826512,1736136664907,-151.0,0.00021973,7]
[347826513,1736136664916,-500.0,0.00021973,3]
[347826514,1736136664926,-500.0,0.00021973,3]
[347826515,1736136664935,-500.0,0.00021973,3]
[347826516,1736136664944,-504.76224731,0.00021973,3]
[347826517,1736136664955,-499.15431785,0.00021973,3]
[347826518,1736136664964,-500.0,0.00021973,3]
[347826519,1736136664975,-487.24265529,0.00021973,3]
[347826520,1736136664985,-509.34737822,0.00021973,3]
[347826521,1736136664994,-500.0,0.00021973,3]
[347826522,1736136665004,-510.49390294,0.00021973,3]
[347826523,1736136665013,-1764.41,0.00021973,3]
[347826524,1736136665022,-500.0,0.00021973,3]
[347826525,1736136665032,-151.0,0.00021973,7]
[347826526,1736136665042,-500.0,0.00021973,3]
[347826527,1736136665051,-1786.45,0.00021973,3]
[347826528,1736136665061,-500.0,0.00021973,3]
[347826529,1736136665070,-500.0,0.00021973,3]
[347826530,1736136665080,-500.0,0.00021973,3]
[347826531,1736136665090,-338.99605407,0.00021973,3]
[347826532,1736136665099,-500.0,0.00021973,3]
[347826533,1736136665108,-500.0,0.00021973,3]
[347826534,1736136665118,-500.0,0.00021973,3]
[347826535,1736136665219,-509.06,0.00021973,3]
[347826536,1736136665229,-500.0,0.00021973,3]
[347826537,1736136665238,-500.0,0.00021973,3]
[347826538,1736136665248,-151.773715,0.00021974,7]
[347826539,1736136665258,-500.0,0.00021974,3]
[347826540,1736136665268,-420.0,0.00021984,2]
[347826541,1736136665277,-160.0,0.00022,14]
[347826542,1736136665287,-1429.26281911,0.00022,2]
[347826543,1736136690870,160.0,0.00021939,120]
[347826544,1736136734510,479.09076341,0.00019668,2]
[347826545,1736136883720,249.66117748,0.00019647,2]
[347826562,1736137036039,319.39384227,0.00019668,2]
[347826563,1736137112561,218.0,0.00025,120]
[347826564,1736137290349,168.399774,0.00013973,2]
[347826565,1736137336780,184.297135,0.00019178,2]
[347826566,1736137337714,212.92922818,0.00019668,2]
[347826567,1736137390975,218.58781305,0.0002,2]
[347826569,1736137674728,465.04754632,0.00016,2]
[347826570,1736137702242,502.062418,0.000187,2]
[347826571,1736137709208,10912.04364445,0.0002,2]
[347826572,1736137711842,4325.13769874,0.0002,2]
[347826573,1736137712110,15735.09799177,0.0002,2]
[347826574,1736137713894,11296.94949268,0.00018,2]
[347826575,1736137715977,353.67804659,0.0002,2]
[347826576,1736137716571,306.96519172,0.00019,3]
[347826577,1736137719227,1040.44906607,0.00019988,3]
[347826578,1736137719256,840.87075577,0.00019888,3]
[347826579,1736137720485,4077.0,0.0002,2]
[347826580,1736137720983,2129.74671588,0.0002,2]
[347826598,1736137832459,-3047.00312507,0.0002,2]
[347826599,1736137832469,-300.0,0.00020315,2]
[347826600,1736137832479,-743.72223144,0.00020316,3]
[347826616,1736137838202,-2307.03776856,0.00020316,3]
[347826617,1736137838211,-500.0,0.00020316,3]
[347826619,1736137838221,-1854.96223144,0.00020316,3]
[347826637,1736137840378,-314.3060045,0.00019318,2]
[347826638,1736137840388,-18.61388074,0.00020316,3]
[347826640,1736137840437,-254.87388782,0.00020316,3]
[347826641,1736137840447,-500.0,0.00020316,3]
[347826642,1736137840456,-500.0,0.00020316,3]
[347826643,1736137840466,-500.0,0.00020316,3]
[347826644,1736137840476,-1130.05,0.00020316,3]
[347826645,1736137840486,-660.36,0.00020316,3]
[347826646,1736137840496,-500.0,0.00020316,3]
[347826647,1736137840506,-534.45,0.00020316,3]
[347826648,1736137840515,-222.04933747,0.00020316,2]
[347826649,1736137840525,-409.88370166,0.00020316,2]
[347826650,1736137840536,-440.43128679,0.00020316,2]
[347826651,1736137840545,-501.81328491,0.00020316,3]
[347826652,1736137840554,-500.0,0.00020316,3]
[347826653,1736137840564,-500.0,0.00020316,3]
[347826654,1736137840573,-500.0,0.00020316,3]
[347826655,1736137840583,-500.0,0.00020316,2]
[347826656,1736137840593,-500.0,0.00020316,3]
[347826657,1736137840602,-500.0,0.00020316,3]
[347826658,1736137840612,-500.0,0.00020316,3]
[347826659,1736137840621,-1250.39,0.00020316,3]
[347826660,1736137840631,-1370.87,0.00020316,3]
[347826661,1736137840641,-500.0,0.00020316,3]
[347826662,1736137840650,-500.0,0.00020316,3]
[347826663,1736137840659,-500.0,0.00020316,3]
[347826664,1736137840668,-568.95,0.00020316,3]
[347826665,1736137840678,-1000.0,0.00020316,7]
[347826666,1736137840687,-532.4,0.00020316,3]
[347826667,1736137840696,-674.58,0.00020316,3]
[347826668,1736137840706,-712.72,0.00020316,3]
[347826669,1736137840715,-500.0,0.00020316,3]
[347826670,1736137840724,-500.0,0.00020316,3]
[347826671,1736137840733,-527.37,0.00020316,3]
[347826672,1736137840743,-500.0,0.00020316,3]
[347826673,1736137840752,-500.0,0.00020316,3]
[347826674,1736137840761,-500.0,0.00020316,3]
[347826675,1736137840771,-500.0,0.00020316,3]
[347826676,1736137840781,-501.97550749,0.00020316,3]
[347826677,1736137840790,-500.0,0.00020316,3]
[347826678,1736137840800,-992.2,0.00020316,2]
[347826679,1736137840809,-500.0,0.00020316,3]
[347826680,1736137840819,-508.19903419,0.00020316,3]
[347826681,1736137840828,-500.0,0.00020316,3]
[347826682,1736137840838,-502.03677185,0.00020316,3]
[347826683,1736137840847,-500.0,0.00020316,3]
[347826684,1736137840857,-504.4464795,0.00020316,3]
[347826685,1736137840867,-500.0,0.00020316,3]
[347826686,1736137840876,-500.0,0.00020316,3]
[347826687,1736137840886,-501.98527608,0.00020316,3]
[347826688,1736137840895,-501.04662463,0.00020316,3]
[347826689,1736137840905,-500.0,0.00020316,3]
[347826690,1736137840915,-500.0,0.00020316,3]
[347826691,1736137840924,-342.239,0.00020317,2]
[347826692,1736137840933,-500.0,0.00020317,3]
[347826693,1736137840943,-500.0,0.00020317,3]
[347826694,1736137840952,-500.0,0.00020317,3]
[347826695,1736137840961,-500.0,0.00020317,3]
[347826696,1736137840972,-500.0,0.00020317,3]
[347826697,1736137840982,-500.0,0.00020317,3]
[347826698,1736137840992,-500.0,0.00020317,3]
[347826699,1736137841001,-500.0,0.00020317,3]
[347826701,1736137841011,-503.47,0.00020317,3]
[347826702,1736137841021,-500.0,0.00020317,3]
[347826704,1736137841032,-500.0,0.00020317,3]
[347826705,1736137841041,-500.0,0.00020317,3]
[347826706,1736137841051,-500.0,0.00020317,3]
[347826707,1736137841061,-500.0,0.00020317,3]
[347826708,1736137841070,-500.0,0.00020317,3]
[347826709,1736137841079,-500.0,0.00020317,3]
[347826710,1736137841089,-500.0,0.00020317,3]
[347826711,1736137841098,-500.0,0.00020317,3]
[347826712,1736137841107,-500.0,0.00020317,3]
[347826713,1736137841117,-500.0,0.00020317,3]
[347826714,1736137841127,-500.0,0.00020317,3]
[347826715,1736137841136,-500.0,0.00020317,3]
[347826716,1736137841146,-500.0,0.00020317,3]
[347826717,1736137841155,-500.0,0.00020317,3]
[347826718,1736137841164,-500.0,0.00020317,3]
[347826719,1736137841174,-500.0,0.00020317,3]
[347826720,1736137841183,-508.37142258,0.00020317,3]
[347826721,1736137841193,-500.0,0.00020317,3]
[347826722,1736137841203,-500.0,0.00020317,3]
[347826723,1736137841212,-500.0,0.00020317,3]
[347826724,1736137841222,-500.0,0.00020317,3]
[347826725,1736137841231,-500.0,0.00020317,3]
[347826726,1736137841240,-502.12104411,0.00020317,3]
[347826727,1736137841250,-500.0,0.00020317,3]
[347826728,1736137841259,-500.0,0.00020317,3]
[347826729,1736137841269,-500.0,0.00020317,3]
[347826730,1736137841281,-500.0,0.00020317,3]
[347826731,1736137841290,-500.0,0.00020317,3]
[347826732,1736137841300,-500.0,0.00020317,3]
[347826733,1736137841311,-500.0,0.00020317,3]
[347826734,1736137841320,-500.0,0.00020317,3]
[347826735,1736137841330,-500.0,0.00020317,3]
[347826736,1736137841340,-500.0,0.00020317,3]
[347826737,1736137841349,-693.19,0.00020317,3]
[347826738,1736137841359,-500.0,0.00020317,3]
[347826739,1736137841368,-500.0,0.00020317,3]
[347826740,1736137841377,-500.0,0.00020317,3]
[347826741,1736137841387,-500.0,0.00020317,3]
[347826742,1736137841396,-500.0,0.00020317,3]
[347826743,1736137841406,-504.02661661,0.00020317,3]
[347826744,1736137841415,-500.0,0.00020317,3]
[347826745,1736137841425,-500.0,0.00020317,3]
[347826746,1736137841434,-501.37963215,0.00020317,3]
[347826747,1736137841443,-482.18731766,0.00020317,3]
[347826748,1736137841453,-503.20427019,0.00020317,3]
[347826749,1736137841462,-500.0,0.00020317,3]
[347826750,1736137841472,-500.0,0.00020317,3]
[347826751,1736137841482,-500.0,0.00020317,3]
[347826752,1736137841491,-498.89036993,0.00020317,3]
[347826753,1736137841501,-500.0,0.00020317,3]
[347826754,1736137841511,-500.0,0.00020317,3]
[347826755,1736137841520,-394.19415625,0.00020317,3]
[347826756,1736137841533,-500.0,0.00020317,3]
[347826757,1736137841542,-500.0,0.00020317,3]
[347826758,1736137841552,-500.0,0.00020317,2]
[347826759,1736137841561,-232.57456999,0.00020317,2]
[347826760,1736137841571,-185.24966246,0.00020317,2]
[347826761,1736137841581,-500.0,0.00020317,3]
[347826762,1736137841590,-504.02502077,0.00020317,3]
[347826763,1736137841600,-500.0,0.00020317,3]
[347826764,1736137841609,-636.30412198,0.00020317,3]
[347826765,1736137841619,-503.14154842,0.00020317,3]
[347826766,1736137841628,-500.0,0.00020317,3]
[347826767,1736137841637,-501.76469795,0.00020317,3]
[347826768,1736137841646,-500.0,0.00020317,3]
[347826769,1736137841655,-500.0,0.00020317,3]
[347826770,1736137841665,-500.0,0.00020317,3]
[347826771,1736137841674,-500.0,0.00020317,3]
[347826772,1736137841683,-324.43903342,0.00020317,2]
[347826773,1736137841693,-500.0,0.00020317,3]
[347826774,1736137841703,-500.0,0.00020317,3]
[347826775,1736137841713,-538.95,0.00020317,3]
[347826776,1736137841723,-500.0,0.00020317,3]
[347826777,1736137841732,-500.0,0.00020317,3]
[347826778,1736137841742,-500.0,0.00020317,3]
[347826779,1736137841751,-504.29554481,0.00020317,3]
[347826780,1736137841761,-510.74363343,0.00020317,2]
[347826781,1736137841771,-535.82285954,0.00020317,3]
[347826782,1736137841783,-500.0,0.00020317,3]
[347826783,1736137841793,-503.00101157,0.00020317,3]
[347826784,1736137841802,-500.0,0.00020317,3]
[347826785,1736137841812,-500.0,0.00020317,3]
[347826786,1736137841822,-500.0,0.00020317,3]
[347826787,1736137841832,-500.0,0.00020317,3]
[347826788,1736137841841,-503.44532138,0.00020317,3]
[347826789,1736137841851,-500.0,0.00020317,3]
[347826790,1736137841860,-500.0,0.00020317,3]
[347826791,1736137841870,-500.0,0.00020317,3]
[347826792,1736137841879,-500.0,0.00020317,3]
[347826793,1736137841889,-500.0,0.00020317,3]
[347826794,1736137841898,-500.0,0.00020317,3]
[347826795,1736137841907,-500.0,0.00020317,3]
[347826796,1736137841917,-500.0,0.00020317,3]
[347826797,1736137841926,-500.0,0.00020317,3]
[347826798,1736137841936,-500.0,0.00020317,3]
[347826799,1736137841945,-500.0,0.00020317,3]
[347826800,1736137841955,-500.0,0.00020317,3]
[347826801,1736137841964,-500.0,0.00020317,3]
[347826802,1736137841977,-500.0,0.00020317,3]
[347826803,1736137841986,-16152.91,0.00020317,3]
[347826804,1736137841995,-500.0,0.00020317,3]
[347826805,1736137842004,-500.0,0.00020317,3]
[347826806,1736137842015,-500.0,0.00020317,3]
[347826807,1736137842024,-500.0,0.00020317,3]
[347826808,1736137842035,-500.0,0.00020317,3]
[347826809,1736137842165,-500.0,0.00020317,3]
[347826810,1736137842175,-505.747755,0.00020317,3]
[347826811,1736137842185,-504.03107627,0.00020317,3]
[347826812,1736137842194,-500.0,0.00020317,3]
[347826813,1736137842203,-500.0,0.00020317,3]
[347826814,1736137842213,-501.47747224,0.00020317,3]
[347826815,1736137842223,-598.99,0.00020317,3]
[347826816,1736137842232,-645.77223282,0.00020317,3]
[347826817,1736137842242,-500.0,0.00020317,3]
[347826818,1736137842251,-500.0,0.00020317,3]
[347826819,1736137842260,-500.0,0.00020317,3]
[347826820,1736137842270,-500.0,0.00020317,3]
[347826821,1736137842281,-1895.87,0.00020317,3]
[347826822,1736137842290,-500.0,0.00020317,3]
[347826823,1736137842300,-500.0,0.00020317,3]
[347826824,1736137842309,-500.0,0.00020317,3]
[347826825,1736137842319,-560.74338263,0.00020318,3]
[347826826,1736137842329,-532.33600414,0.00020318,3]
[347826827,1736137842338,-500.0,0.00020318,3]
[347826828,1736137842348,-500.0,0.00020318,3]
[347826829,1736137842357,-524.91681918,0.00020318,3]
[347826830,1736137842367,-501.53774986,0.00020318,2]
[347826831,1736137842376,-500.0,0.00020318,3]
[347826832,1736137842386,-500.0,0.00020318,3]
[347826833,1736137842395,-501.9037802,0.00020318,3]
[347826834,1736137842405,-503.38147842,0.00020318,3]
[347826835,1736137842414,-502.80778565,0.00020318,3]
[347826836,1736137842423,-505.62861626,0.00020318,3]
[347826837,1736137842432,-500.0,0.00020318,3]
[347826838,1736137842442,-500.0,0.00020318,3]
[347826839,1736137842451,-381.54990175,0.00020318,3]
[347826840,1736137842461,-500.0,0.00020318,3]
[347826841,1736137842471,-500.0,0.00020318,3]
[347826842,1736137842480,-500.0,0.00020318,3]
[347826843,1736137842489,-500.0,0.00020318,3]
[347826844,1736137842499,-500.0,0.00020318,3]
[347826845,1736137842508,-500.0,0.00020318,3]
[347826846,1736137842517,-500.0,0.00020318,3]
[347826847,1736137842526,-200.0,0.00020318,3]
[347826848,1736137842535,-500.0,0.00020318,3]
[347826849,1736137842544,-500.0,0.00020318,3]
[347826850,1736137842554,-500.0,0.00020318,3]
[347826851,1736137842563,-500.0,0.00020318,3]
[347826852,1736137842572,-500.0,0.00020318,3]
[347826853,1736137842581,-500.0,0.00020318,3]
[347826854,1736137842591,-500.0,0.00020318,3]
[347826855,1736137842601,-500.0,0.00020318,3]
[347826856,1736137842610,-500.0,0.00020318,3]
[347826857,1736137842619,-246.54138012,0.00020318,3]
[347826858,1736137842628,-500.0,0.00020318,3]
[347826859,1736137842638,-500.0,0.00020318,3]
[347826860,1736137842647,-500.0,0.00020318,3]
[347826861,1736137842656,-500.0,0.00020318,3]
[347826862,1736137842665,-500.0,0.00020318,3]
[347826863,1736137842675,-500.0,0.00020318,3]
[347826865,1736137842684,-504.10714261,0.00020318,3]
[347826866,1736137842693,-500.0,0.00020318,3]
[347826868,1736137842703,-500.0,0.00020318,3]
[347826870,1736137842712,-500.0,0.00020318,3]
[347826871,1736137842721,-513.96636956,0.00020318,3]
[347826872,1736137842731,-500.0,0.00020318,3]
[347826873,1736137842740,-500.0,0.00020318,3]
[347826874,1736137842749,-500.0,0.00020318,3]
[347826875,1736137842759,-502.73501005,0.00020318,3]
[347826876,1736137842768,-503.05806659,0.00020318,3]
[347826877,1736137842778,-500.0,0.00020318,3]
[347826878,1736137842787,-500.0,0.00020318,3]
[347826879,1736137842796,-500.0,0.00020318,3]
[347826880,1736137842806,-249.55780101,0.00020318,3]
[347826881,1736137842816,-500.0,0.00020318,3]
[347826882,1736137842825,-500.0,0.00020318,3]
[347826883,1736137842835,-500.0,0.00020318,3]
[347826884,1736137842845,-500.0,0.00020318,3]
[347826885,1736137842854,-501.71072528,0.00020318,3]
[347826887,1736137842863,-500.0,0.00020318,3]
[347826888,1736137842872,-500.0,0.00020318,3]
[347826890,1736137842881,-500.0,0.00020318,3]
[347826891,1736137842891,-500.0,0.00020318,3]
[347826892,1736137842900,-500.0,0.00020318,3]
[347826893,1736137842909,-500.0,0.00020318,3]
[347826894,1736137842918,-500.0,0.00020318,3]
[347826895,1736137842927,-500.0,0.00020318,3]
[347826896,1736137842937,-500.0,0.00020318,3]
[347826897,1736137842946,-500.0,0.00020318,3]
[347826898,1736137842956,-525.59291983,0.00020318,3]
[347826899,1736137842966,-507.20472774,0.00020318,3]
[347826900,1736137842978,-504.74938416,0.00020318,3]
[347826901,1736137842987,-245.48894289,0.00020318,3]
[347826902,1736137842997,-501.42300636,0.00020318,3]
[347826903,1736137843006,-504.06365863,0.00020318,3]
[347826904,1736137843018,-500.0,0.00020318,3]
[347826905,1736137843030,-496.25088303,0.00020318,3]
[347826906,1736137843040,-500.0,0.00020318,3]
[347826907,1736137843049,-500.0,0.00020318,3]
[347826908,1736137843061,-500.0,0.00020318,3]
[347826909,1736137843072,-397.88460314,0.00020318,3]
[347826910,1736137843082,-500.0,0.00020318,3]
[347826911,1736137843091,-500.0,0.00020318,3]
[347826912,1736137843100,-500.0,0.00020318,3]
[347826913,1736137843109,-500.0,0.00020318,3]
[347826914,1736137843119,-500.0,0.00020318,3]
[347826915,1736137843128,-505.00517027,0.00020318,3]
[347826916,1736137843138,-503.48306795,0.00020318,3]
[347826918,1736137843147,-500.0,0.00020318,3]
[347826920,1736137843157,-500.0,0.00020318,3]
[347826922,1736137843166,-506.92472383,0.00020318,3]
[347826924,1736137843176,-500.0,0.00020318,3]
[347826926,1736137843185,-500.0,0.00020318,3]
[347826928,1736137843195,-500.0,0.00020318,3]
[347826930,1736137843204,-500.0,0.00020318,3]
[347826932,1736137843213,-500.0,0.00020318,3]
[347826934,1736137843222,-500.0,0.00020318,3]
[347826936,1736137843231,-500.0,0.00020318,3]
[347826938,1736137843240,-500.0,0.00020318,3]
[347826940,1736137843250,-500.0,0.00020318,3]
[347826942,1736137843259,-500.0,0.00020318,3]
[347826944,1736137843270,-500.0,0.00020318,3]
[347826946,1736137843279,-506.36385266,0.00020318,3]
[347826948,1736137843289,-500.0,0.00020318,3]
[347826950,1736137843299,-500.0,0.00020318,3]
[347826952,1736137843309,-500.0,0.00020318,3]
[347826954,1736137843318,-693.19,0.00020318,3]
[347826956,1736137843327,-500.0,0.00020318,3]
[347826958,1736137843336,-500.0,0.00020318,3]
[347826960,1736137843346,-500.0,0.00020318,3]
[347826962,1736137843355,-500.0,0.00020318,3]
[347826964,1736137843365,-500.0,0.00020318,3]
[347826966,1736137843375,-500.0,0.00020318,3]
[347826968,1736137843385,-500.0,0.00020318,3]
[347826970,1736137843395,-500.0,0.00020318,3]
[347826972,1736137843405,-500.0,0.00020318,3]
[347826974,1736137843414,-156.77623535,0.00020318,3]
[347826976,1736137843425,-500.0,0.00020318,3]
[347826978,1736137843435,-188.0,0.00020318,2]
[347826980,1736137843445,-500.0,0.00020318,3]
[347826982,1736137843455,-500.0,0.00020318,3]
[347826984,1736137843464,-500.0,0.00020318,3]
[347826986,1736137843473,-500.0,0.00020318,3]
[347826988,1736137843483,-500.0,0.00020318,3]
[347826990,1736137843493,-500.0,0.00020318,3]
[347826992,1736137843502,-500.0,0.00020318,3]
[347826994,1736137843511,-501.54508455,0.00020318,3]
[347826996,1736137843521,-500.0,0.00020318,3]
[347826998,1736137843530,-500.0,0.00020318,3]
[347827000,1736137843540,-507.54940584,0.00020318,3]
[347827002,1736137843549,-507.3698704,0.00020318,3]
[347827004,1736137843558,-500.0,0.00020318,3]
[347827006,1736137843567,-501.801731,0.00020318,3]
[347827008,1736137843577,-501.97887917,0.00020318,3]
[347827010,1736137843586,-500.0,0.00020318,3]
[347827012,1736137843596,-501.26614128,0.00020318,3]
[347827014,1736137843605,-502.19352836,0.00020318,3]
[347827016,1736137843615,-502.10553831,0.00020318,3]
[347827018,1736137843624,-500.0,0.00020318,3]
[347827020,1736137843634,-502.41721277,0.00020318,3]
[347827022,1736137843644,-500.0,0.00020318,3]
[347827024,1736137843653,-500.0,0.00020318,3]
[347827026,1736137843662,-500.0,0.00020318,3]
[347827028,1736137843671,-505.83756815,0.00020318,3]
[347827030,1736137843680,-500.0,0.00020318,3]
[347827032,1736137843690,-233.02777607,0.00020318,3]
[347827034,1736137843700,-500.0,0.00020318,3]
[347827036,1736137843709,-500.0,0.00020318,3]
[347827038,1736137843718,-500.0,0.00020318,3]
[347827040,1736137843728,-500.0,0.00020318,3]
[347827042,1736137843739,-537.75934869,0.00020318,3]
[347827044,1736137843748,-500.0,0.00020318,3]
[347827045,1736137843758,-500.0,0.00020318,3]
[347827048,1736137843768,-500.0,0.00020318,3]
[347827049,1736137843778,-500.0,0.00020318,3]
[347827051,1736137843788,-500.0,0.00020318,3]
[347827053,1736137843797,-500.0,0.00020318,3]
[347827055,1736137843807,-500.0,0.00020318,3]
[347827057,1736137843816,-500.0,0.00020318,3]
[347827060,1736137843826,-500.0,0.00020318,3]
[347827062,1736137843836,-500.0,0.00020318,3]
[347827063,1736137843845,-1003.86338208,0.00020318,3]
[347827066,1736137843858,-502.91123433,0.00020318,3]
[347827068,1736137843868,-503.08947556,0.00020318,3]
[347827070,1736137843877,-502.14567155,0.00020318,3]
[347827071,1736137843887,-502.70210623,0.00020318,3]
[347827074,1736137843896,-502.85004586,0.00020318,3]
[347827075,1736137843905,-502.52143226,0.00020318,3]
[347827078,1736137843915,-501.83834982,0.00020318,3]
[347827079,1736137843924,-500.0,0.00020318,3]
[347827081,1736137843934,-500.0,0.00020318,3]
[347827083,1736137843944,-501.07495452,0.00020318,3]
[347827085,1736137843953,-500.86893524,0.00020318,3]
[347827087,1736137843963,-503.50595739,0.00020318,3]
[347827089,1736137843976,-501.476396,0.00020318,3]
[347827091,1736137843986,-500.0,0.00020318,3]
[347827093,1736137843995,-156.39,0.00020318,2]
[347827095,1736137844005,-500.0,0.00020319,3]
[347827097,1736137844015,-500.0,0.00020319,3]
[347827099,1736137844024,-500.0,0.00020319,3]
[347827101,1736137844035,-500.0,0.00020319,3]
[347827103,1736137844046,-504.49853496,0.00020319,3]
[347827105,1736137844057,-500.0,0.00020319,3]
[347827107,1736137844067,-500.0,0.00020319,3]
[347827109,1736137844076,-500.0,0.00020319,3]
[347827111,1736137844085,-500.0,0.00020319,3]
[347827113,1736137844095,-500.0,0.00020319,3]
[347827115,1736137844104,-500.0,0.00020319,3]
[347827117,1736137844114,-500.0,0.00020319,3]
[347827119,1736137844124,-500.0,0.00020319,3]
[347827121,1736137844133,-500.0,0.00020319,3]
[347827123,1736137844143,-500.0,0.00020319,3]
[347827125,1736137844153,-500.0,0.00020319,3]
[347827128,1736137844163,-500.0,0.00020319,3]
[347827130,1736137844172,-500.0,0.00020373,2]
[347827131,1736137844182,-500.0,0.00020373,2]
[347827134,1736137844191,-500.0,0.00020373,2]